Cogmind - Beta 16.1 --- EXPLORER MODE // 2026.04.01 @ 06:34:56 Player: viper Result: Destroyed by BF-P1H(R) with Subdweller Laser Performance ------------- Evolutions (0) 0 Regions Visited (2) 400 Robots Destroyed (28) 140 Value Destroyed (759) 759 Prototype IDs (4) 80 Alien Tech Used (0) 0 Bonus (0) 0 TOTAL SCORE: 1379 Bonus ------- None Cogmind --------- Core Integrity 0/250 Matter 251/300 Energy 250/250 System Corruption 1% Temperature Cool (6) Movement Walking (400) Ox4 Location -10/Subcaves Parts ------- > --- POWER (1) -------- Ion Engine > --- PROPULSION (2) --- Aluminum Leg Aluminum Leg > --- UTILITY (3) ------ Huge Storage Unit Structural Scanner Power Shielding > --- WEAPON (2) ------- Heavy Battle Rifle Light Cannon > --- INVENTORY (25) --- Ion Engine Ion Engine Ion Engine Aluminum Leg Aluminum Leg Aluminum Leg Aluminum Leg Aluminum Leg Improved Heat Sink Medium Matter Pod (100) Medium Matter Pod (100) Weight Redist. System Visual Processing Unit Signal Interpreter Propulsion Shielding Medium Laser Light Assault Rifle Subdweller Machine Gun Light Cannon Grenade Launcher Datajack Mining Laser Hammer Peak State ------------ > --- POWER ------------ Ion Engine > --- PROPULSION ------- Aluminum Leg Aluminum Leg > --- UTILITY ---------- Huge Storage Unit Structural Scanner Power Shielding > --- WEAPON ----------- Heavy Battle Rifle Light Cannon > --- INVENTORY -------- Ion Engine Ion Engine Ion Engine Aluminum Leg Aluminum Leg Aluminum Leg Aluminum Leg Aluminum Leg Improved Heat Sink Medium Matter Pod Medium Matter Pod Weight Redist. System Visual Processing Unit Signal Interpreter Propulsion Shielding Medium Laser Light Assault Rifle Subdweller Machine Gun Light Cannon Grenade Launcher Datajack Mining Laser Hammer [Rating: 13] Favorites ----------- Power Ion Engine Engine Ion Engine Propulsion Aluminum Leg Leg Aluminum Leg Utility Power Shielding Device Structural Scanner Storage Huge Storage Unit Protection Power Shielding Weapon Light Assault Rifle Energy Gun Medium Laser Ballistic Gun Light Assault Rifle Ballistic Cannon Light Cannon Launcher Grenade Launcher Impact Weapon Hammer Build | -11 -10 -10 ------- Run | Yrd Mat Sub Slots Evolved 1 | . 1 . Power . | . . . Propulsion . | . . . Utility 1 | . 1 . Weapon . | . . . Parts Attached 31 | 7 22 2 Power 5 | 1 4 . Engine 5 | 1 4 . Core . | . . . Reactor . | . . . Propulsion 11 | 2 9 . Treads . | . . . Leg 11 | 2 9 . Wheel . | . . . Hover . | . . . Flight . | . . . Utility 5 | 2 3 . Device 1 | . 1 . Storage 3 | 1 2 . Processor . | . . . Hackware . | . . . Protection 1 | 1 . . Artifact . | . . . Weapon 10 | 2 6 2 Energy Gun 1 | . 1 . Energy Cannon . | . . . Ballistic Gun 5 | 2 2 1 Ballistic Cannon 2 | . 2 . Launcher 1 | . 1 . Special Weapon . | . . . Impact Weapon 1 | . . 1 Slashing Weapon . | . . . Piercing Weapon . | . . . Special Melee Weapon . | . . . Unidentified Prototypes . | . . . Parts Lost 3 | . 3 . Power . | . . . Propulsion 1 | . 1 . Utility . | . . . Weapon 2 | . 2 . Highest Loss Streak 3 | . 3 . To Critical Strikes 1 | . 1 . Average Backups 19 | 1 18 22 Power 2 | . 2 3 Propulsion 5 | . 6 5 Utility 6 | . 6 7 Weapon 3 | . 2 6 Tool/Special . | . . . Unused Backups 15 | . 3 12 Power 4 | . 2 2 Propulsion 2 | . 1 1 Utility 7 | . . 7 Weapon 1 | . . 1 Tool/Special 1 | . . 1 Average Slot Usage (%) 99 | . 99 100 Engine 12 | . 12 12 Leg 24 | . 24 25 Device 12 | . 12 12 Storage 12 | . 12 12 Protection 12 | . 12 12 Ballistic Gun 18 | . 22 . Ballistic Cannon 4 | . 1 19 Peak Build Rating 13 | 7 11 13 Average Rating 10 | 5 10 10 On Entrance 5 | . 7 10 Avg Prop Armor Cover (%) 10 | . 10 . Naked Turns . | . . . Heaviest Build 94 | 16 93 94 Greatest Support 20 | 20 20 20 Greatest Overweight (x) 30 | . 30 4 Average Overweight (x) 3 | . 4 4 Largest Inventory Capacity 25 | 10 25 25 Average Capacity 24 | 7 24 25 Most Carried 25 | 4 25 23 Average Carried 19 | 1 18 22 Final Capacity 25 | 10 25 25 Final Carried 23 | 4 22 23 Class Distribution -------------------- 87% | Hacker-Mutant 12% | Scavenger-Mutant Dominant Class ---------------- Hacker-Mutant | -10/Materials Hacker-Mutant | -10/Subcaves Resources | -11 -10 -10 ----------- Run | Yrd Mat Sub Matter Collected 966 | 185 763 18 Remotely . | . . . Salvage Created 1059 | . 1041 18 Parts 69 | . 66 3 Haulers Intercepted 2 | . 2 . Recyclers Shooed . | . . . Parts Field Recycled . | . . . Retrieved Matter . | . . . Parts Self-Destructed . | . . . Prevented . | . . . Parts Restored . | . . . Kills | -11 -10 -10 ------- Run | Yrd Mat Sub Combat Hostiles Destroyed 20 | . 19 1 Guns 19 | . 19 . Cannons 1 | . . 1 Classes Destroyed 8 | . 8 . Worker 2 | . 2 . Tunneler 1 | . 1 . Hauler 2 | . 2 . Recycler 1 | . 1 . Watcher 2 | . 2 . Swarmer 2 | . 2 . Grunt 14 | . 14 . Subdweller 4 | . 3 1 Best Kill Streak 5 | . 5 1 Combat Bots Only 4 | . 4 1 Max Kills in Single Turn 1 | . 1 1 Gunslinging . | . . . Exploded . | . . . Melee . | . . . Uniques/NPCs Destroyed . | . . . Combat | -11 -10 -10 -------- Run | Yrd Mat Sub Hostile Shots Fired 141 | . 134 7 Missed 33 | . 32 1 Hits 108 | . 102 6 Projectile 108 | . 102 6 Critical Strikes 5 | . 5 . Damage Taken 1045 | . 969 76 Core 257 | . 219 38 Absorbed by Shields . | . . . Redirected to Shielding 19 | . 19 . Ignored by Resistances 641 | . 598 43 Regen/Repaired (Parts) 300 | . 300 . Core Remaining (%) 100 | 100 . . Volleys Fired 85 | . 80 5 Largest 2 | . 2 2 Hottest 80 | . 80 63 Shots Fired 167 | . 157 10 Gun 152 | . 149 3 Cannon 12 | . 5 7 Launcher 3 | . 3 . Special . | . . . Kinetic 151 | . 141 10 Thermal 13 | . 13 . Explosive 3 | . 3 . Electromagnetic . | . . . Robot Hit Streak 38 | . 38 10 Robot Miss Streak 2 | . 2 . Penetration Max . | . . . Secondary Targets 3 | . 3 . Max Gunslinging Chain 1 | . 1 . Shots Hit Robots 137 | . 128 9 Core Hits 56 | . 54 2 Critical Kills 2 | . 2 . Critical Parts Destroyed . | . . . Critical Strikes 3 | . 3 . Burn 1 | . 1 . Destroy 2 | . 2 . Melee Attacks 8 | . . 8 Impact 8 | . . 8 Slashing . | . . . Piercing . | . . . Sneak Attacks . | . . . Combat Hostiles . | . . . Follow-up Attacks . | . . . Damage Inflicted 1558 | . 1399 159 Guns 1367 | . 1319 48 Cannons 163 | . 52 111 Explosions . | . . . Melee . | . . . Ramming 28 | . 28 . Kinetic 1382 | . 1223 159 Thermal 148 | . 148 . Explosive . | . . . Electromagnetic . | . . . Impact . | . . . Slashing . | . . . Piercing . | . . . Highest Corruption 1 | . 1 1 Average Corruption 1 | . 1 1 Corruption Purged . | . . . Corruption Blocked . | . . . Effects 14 | . 8 6 Message Errors 5 | . 3 2 Matter Fused 2 | . 1 1 Heat Flow Errors 1 | . . 1 Energy Discharges 2 | . 2 . Data Loss (minor) 2 | . 1 1 Misfires 1 | . 1 . Alerts 1 | . . 1 Overload Shots . | . . . Overflow Damage . | . . . Projectiles . | . . . Explosions . | . . . Melee . | . . . Knockbacks . | . . . Impact . | . . . Kinetic . | . . . Secondary . | . . . Self-Inflicted Damage . | . . . Shots . | . . . Rammed . | . . . Targets Rammed 8 | . 8 . Kicked 8 | . 8 . Crushed . | . . . Highest Temperature 244 | . 156 244 Average Temperature 45 | . 42 125 Received Heat Transfer 612 | . 576 36 Siege Activations . | . . . Martial Activations . | . . . Shielding Activations . | . . . Robots Disrupted . | . . . Combat Hostiles . | . . . Robots Corrupted . | . . . Combat Hostiles . | . . . Parts Fried . | . . . Impact Corruptions . | . . . Robots Melted . | . . . Combat Hostiles . | . . . Parts Melted 4 | . 4 . Heat Transferred 518 | . 518 . Parts Sabotaged . | . . . Parts Stolen . | . . . Parts Stripped . | . . . Power Chain Reactions . | . . . Alert | -11 -10 -10 ------- Run | Yrd Mat Sub Maximum Alert Level . | . . . Low Security (%) 100 | 100 100 . Level 1 . | . . . Level 2 . | . . . Level 3 . | . . . Level 4 . | . . . Level 5 . | . . . High Security . | . . . Max Security . | . . . Peak Influence 70 | . 70 . Initial . | . . . Average 3 | . 3 . Influence Increases 482 | . 482 . Destroy 0b10 Robot/C 320 | . 320 . Destroy 0b10 Robot/NC 40 | . 40 . Destroy Leader 78 | . 78 . Successful Hack 22 | . 22 . Destroy Structure 22 | . 22 . Influence Decreases 482 | . 482 . Time Decay 482 | . 482 . Squads Dispatched 2 | . 2 . Investigation 2 | . 2 . Extermination . | . . . Reinforcement . | . . . Assault . | . . . Garrison . | . . . Intercept . | . . . Searches Triggered . | . . . Construction Impeded . | . . . Haulers Reinforced . | . . . Active Scanning Responses . | . . . Cargo Convoy Interrupts . | . . . Stealth | -11 -10 -10 --------- Run | Yrd Mat Sub Distress Signals 2 | . 2 . Communications Jammed . | . . . Distress Signals . | . . . Times Spotted 27 | . 25 2 Peak Tracking Total 5 | . 5 1 Tactical Retreats . | . . . Traps | -11 -10 -10 ------- Run | Yrd Mat Sub Traps Triggered 1 | . 1 . Indirectly . | . . . Trap Hack Attempts . | . . . Triggered . | . . . Disarmed . | . . . Reprogrammed 6 | . 6 . Reused . | . . . Traps Extracted . | . . . Installed . | . . . Triggered . | . . . Machines | -11 -10 -10 ---------- Run | Yrd Mat Sub Machines Disabled . | . . . Max in Single Turn . | . . . Machines Repaired . | . . . Machines Dismantled . | . . . Machines Sabotaged . | . . . Overloaded Fab Kills . | . . . Hacking | -11 -10 -10 --------- Run | Yrd Mat Sub Machines Accessed 9 | . 9 . Terminals 8 | . 8 . Fabricators . | . . . Repair Stations 1 | . 1 . Recycling Units . | . . . Scanalyzers . | . . . Garrison Access . | . . . Total Hacks 53 | . 53 . Successful 37 | . 37 . Failed 16 | . 16 . Catastrophic . | . . . Database Lockouts . | . . . Manual . | . . . Terminals 41 | . 41 . Fabricators . | . . . Repair Stations 12 | . 12 . Recycling Units . | . . . Scanalyzers . | . . . Garrison Access . | . . . Terminal Hacks 26 | . 26 . Record 9 | . 9 . Robot Analysis 2 | . 2 . Prototype ID Bank 2 | . 2 . Branch Access Points 1 | . 1 . Terminal Index 1 | . 1 . Locate Traps 2 | . 2 . Reprogram Traps 1 | . 1 . Dispatch Records 1 | . 1 . Patrol Status 1 | . 1 . Hauler Manifests 1 | . 1 . Registered Components 1 | . 1 . Zone Layout 4 | . 4 . Fabricator Hacks . | . . . Repair Station Hacks 11 | . 11 . Scan Component 6 | . 6 . Repair 5 | . 5 . Recycling Unit Hacks . | . . . Scanalyzer . | . . . Garrison Access Hacks . | . . . Unauthorized Hacks . | . . . Terminals . | . . . Fabricators . | . . . Repair Stations . | . . . Recycling Units . | . . . Scanalyzers . | . . . Garrison Access . | . . . Data Cores Recovered . | . . . Used . | . . . Hacking Detections 9 | . 9 . Full Trace Events 9 | . 9 . Feedback Events 1 | . 1 . Corruption 1 | . 1 . Feedback Blocked . | . . . Robot Schematics Acquired . | . . . Robots Built . | . . . Authchips . | . . . Time . | . . . Total Robot Build Rating . | . . . Part Schematics Acquired . | . . . Parts Built . | . . . Authchips . | . . . Time . | . . . Total Part Build Rating . | . . . Part Studies Acquired . | . . . Parts Repaired 5 | . 5 . Time 136 | . 136 . Parts Recycled . | . . . Recycled Matter . | . . . Retrieved Matter . | . . . Retrieved Components . | . . . Parts Scanalyzed . | . . . Part Schematics Acquired . | . . . Parts Damaged . | . . . Bothacking | -11 -10 -10 ------------ Run | Yrd Mat Sub Used RIF Installer . | . . . Robots Hacked . | . . . Non-combat . | . . . Combat . | . . . Robot Hacks Applied . | . . . Relay Couplers Released . | . . . Fabnet Peak Effective % . | . . . Robots Rewired . | . . . Allies Hacked . | . . . Hacks Repelled . | . . . Allies | -11 -10 -10 -------- Run | Yrd Mat Sub Total Allies . | . . . Largest Group . | . . . Highest-Rated Group . | . . . Highest-Rated Ally . | . . . Total Orders . | . . . Ally Attacks . | . . . Total Damage . | . . . Kills . | . . . Allies Corrupted . | . . . Allies Melted . | . . . Intel | -11 -10 -10 ------- Run | Yrd Mat Sub Active Infowar (turns) 4471 | . 3776 695 Structural 4471 | . 3776 695 Robot Analysis Total 2 | . 2 . Derelict Logs Recovered . | . . . Drone Launches . | . . . Drone Recoveries . | . . . Exploration | -11 -10 -10 ------------- Run | Yrd Mat Sub Turns Passed 4542 | 70 3777 695 Spaces Moved 1059 | 55 840 164 Core 20 | 14 6 . Treads . | . . . Legs 1039 | 41 834 164 Wheels . | . . . Hover . | . . . Flight . | . . . Fastest Speed 50 | 50 120 400 Average Speed 381 | 102 396 400 Slowest Speed 1550 | 120 1550 400 Overloaded Moves . | . . . Propulsion Burnouts . | . . . Robots Hopped . | . . . Potential Cave-ins . | . . . Cave-ins Triggered . | . . . Exploration Rate (%) 39 | 3 94 20 Regions Visited 2 Branch Regions 1 Pre-discovered Areas . | . . . Known Exits Taken 2 | 1 1 . Unknown Exits Taken . | . . . Scrap Searched . | . . . Spaces Dug 12 | . 12 . Terrain Destroyed 20 | . 20 . Melee . | . . . Projectile . | . . . AOE 20 | . 20 . Terrain Rammed . | . . . Walls Destroyed . | . . . Machines Disabled . | . . . Actions | -11 -10 -10 --------- Run | Yrd Mat Sub Total 1372 | 65 1127 180 Wait 136 | . 136 . Move 1057 | 54 839 164 Hop . | . . . Pick Up 25 | 4 20 1 Fast Attach 13 | 7 6 . Attach 4 | . 4 . Detach 2 | . 2 . Swap 22 | . 20 2 Drop 12 | . 12 . Fire 85 | . 80 5 Melee 8 | . . 8 Ram . | . . . Kick 8 | . 8 . Crush . | . . . Escape Stasis . | . . . Rewire . | . . . Trap . | . . . Miscellaneous . | . . . Route ------- -11/Scrapyard -10/Materials (discovered 5 exits: *Mat x3 / *Min / *Sub) -10/Subcaves History --------- Turn | Location | Event 2 | -11/Scrapyard | Met Revision 17 5 | -11/Scrapyard | Identified exit to Materials 5 | -11/Scrapyard | Discovered exit to Materials (range 15) 71 | -11/Scrapyard | Entered Materials 71 | -10/Materials | Evolved 1 slot: Utility x1 208 | -10/Materials | Identified exit to Subcaves 208 | -10/Materials | Discovered exit to Subcaves (range 9) 317 | -10/Materials | Build established: Hacker-Mutant 450 | -10/Materials | Identified exit to Mines 450 | -10/Materials | Discovered exit to Mines (range 6) 1071 | -10/Materials | Derelicts attacked the area 1151 | -10/Materials | Core integrity fell below 50% 1195 | -10/Materials | Lost 3 parts (1n2w) 1619 | -10/Materials | Repaired Lgt. Assault Rifle 1646 | -10/Materials | Repaired Aluminum Leg 1674 | -10/Materials | Repaired Aluminum Leg 1701 | -10/Materials | Repaired Aluminum Leg 1734 | -10/Materials | Repaired Sub. Machine Gun 1804 | -10/Materials | Identified exit to Materials 1804 | -10/Materials | Discovered exit to Materials (range 10) 2245 | -10/Materials | Core integrity fell below 20% 2515 | -10/Materials | Discovered exit to Materials (range 10) 2935 | -10/Materials | Build established: Scavenger-Mutant 3100 | -10/Materials | Discovered exit to Materials (range 10) 3380 | -10/Materials | Build established: Hacker-Mutant 3848 | -10/Materials | Entered Subcaves 3849 | -10/Subcaves | Approached by a straggling Scientist 4543 | -10/Subcaves | Destroyed by BF-P1H(R) with Subdweller Laser Last Messages --------------- 04090_ C0IC3ZR7<>|TU7D4:YV2M9PKTX5BD/ITV93AE KB-2B1(c): "I think it's somewhere southwest of here" 04135_ VM-59I(u) builds Twisted Machinery. 04142_ KB-2B1(c) destroyed. 04147_ VM-59I(u) builds Twisted Machinery. 04152_ 44-A8L(R) destroyed. 04153_ Subatomizers dissect the Machine Analyzer. 04163_ Acquired 18 matter. 04166_ Subatomizers dissect the Machine Analyzer. 04169_ System corrupted: IFF burst signal emitted. 04189_ VM-59I(u) builds Twisted Machinery. 04203_ Subatomizers dissect the Sub. Monowheel. 04208_ System corrupted: Heat flow error (+284). 04209_ VM-59I(u) builds Twisted Machinery. 04528_ BF-P1H(R): "ECOKILL!" 04534_ System corrupted: Component data lost. Map ----- +----------------------------------------------------+ | ?????????????????????????????## ##?????? | | ?????????????????????????????## ##?????? | | ?????????????????????????????## ### ##?????? | | ?????????????????????????????## #### ##?????? | | ?????????????????????????????### ####? ####???? | | ?????????????????????????????### #### ####???? | | ?????????????????????????????### ### ##???? | | ?????????????????????????????### ## #####?? | | ?????????????????????????????## #####?? | | ?????????????????????????????## ###? | | ?????????????????????????????## ### | | ??????????????????############# #### ## | | ?????????????????############## #### ## | | ?????????????????### ### ##???? ??? | | ?????????????????## ### ######????????? | | ?????????????????## ### ######????????? | | ?????????????????### ## ### ##????????????? | | ??????????????????### ### ##????????????? | | ???????????????????### ### ##????????????? | | ???????????????????### ####### ##????????????? | | ???????????????????## ####### ????????????? | | ???????????????????## ##??? ?????????????? | | ???????????????????### ##??? ????????????? | | ???????????????????### ###??? ????????????? | | ????????????????????### ###??? ??????????? | | ????????????????????### @ ##???? ## ??????????? | | ????????????????????## ###??? ####??????????? | | ????????????????????### ##??? ####???????????? | | ????????????????????### ???####????????????? | | ?????????????????????###### ##????????????????? | | ?????????????????????####### ###???????????????? | | ??????????????????????????## ##???????????????? | | ???????????????????????????? ##???????????????? | | ????????????????????????????? #???????????????? | | ????????????????????????????? ???????????????? | | ?????????????????????????????? ??????????????? | | ?????????????????????????????? R ?????????????? | | ??????????????????????????????##% ??????????????? | | ??????????????????????????????## ????????????????? | | ?????????????????????????????????????????????????? | | ?????????????????????????????????????????????????? | | ?????????????????????????????????????????????????? | | ?????????????????????????????????????????????????? | | ?????????????????????????????????????????????????? | | ?????????????????????????????????????????????????? | | ?????????????????????????????????????????????????? | | ?????????????????????????????????????????????????? | | ?????????????????????????????????????????????????? | | ?????????????????????????????????????????????????? | | ?????????????????????????????????????????????????? | +----------------------------------------------------+ Best States ------------- Heat Dissipation 25 Energy Generation 10 Energy Capacity 250 Matter Stores 300 Matter Capacity 300 Sight Range 16 Terrain Scan Density 10 Resistance: KI 35 Resistance: TH 35 Resistance: EX 35 Resistance: EM 35 Resistance: I 35 Resistance: S 35 Resistance: P 35 Power Shielding 33 Evasion (%) 55 Offensive Hacking 20 Item Schematics ----------------- None Robot Schematics ------------------ None Fabricated ------------ Nothing Repaired ---------- Lgt. Assault Rifle | 35% | -10/Materials Aluminum Leg | 7% | -10/Materials Aluminum Leg | 11% | -10/Materials Aluminum Leg | 34% | -10/Materials Sub. Machine Gun | 71% | -10/Materials Studied --------- None Alien Tech Used ----------------- None Achievements -------------- None Challenges ------------ None Game ------ Seed LightpackSigixFilter Manual? 0 Play Time 00:19:31 Cumulative 2371.4 hours Start 2026.04.01 @ 06:17:33 End 2026.04.01 @ 06:34:56 Sessions 1 Manual Loads 0 Difficulty Explorer Special Mode None Game No. 1117 Rogue 62 Adventurer 0 Explorer 1055 Win Type - Total 13 Types 13/0/0/0/0/0/0/0/0/0 Lore% 67 Gallery% 69 Achievement% 50 Wizard Run 0 Options --------- Layout 1 ASCII 0 Keyboard 0 Movement Numpad Keybinds 0 Fullscreen 1 Font 48/Smallcaps Map View 50x35 Zoom Use 0% Tactical HUD 1 Map Filters NONE Filters NONE Steam 1 RUN: 6fb8524b-01dd-49da-956c-391294911668